Cogmind - Beta 11.1 *** ADVENTURER MODE // 2022.05.18 @ 00:19:51 Player: lobstro Result: Destroyed by S-10 Pest with Light Assault Rifle Performance ------------- Evolutions (0) 0 Regions Visited (2) 400 Robots Destroyed (29) 145 Value Destroyed (750) 750 Prototype IDs (2) 40 Alien Tech Used (0) 0 Bonus (0) 0 TOTAL SCORE: 1335 Bonus ------- None Cogmind --------- Core Integrity 0/250 Matter 281/300 Energy 265/265 System Corruption 0% Temperature Cool (50) Movement Walking (120) Location -10/Mines Parts ------- > --- POWER (1) -------- Improved Ion Engine > --- PROPULSION (2) --- Aluminum Leg Aluminum Leg > --- UTILITY (2) ------ Improved Terrain Scanner Terrain Scan Processor > --- WEAPON (2) ------- Heavy Assault Rifle Mining Laser > --- INVENTORY (5) ---- Light Ion Engine Aluminum Leg Large Storage Unit Sensor Array Peak State ------------ > --- POWER ------------ Improved Ion Engine > --- PROPULSION ------- Aluminum Leg Aluminum Leg > --- UTILITY ---------- Improved Terrain Scanner Terrain Scan Processor > --- WEAPON ----------- Heavy Assault Rifle Rocket Launcher > --- INVENTORY -------- Light Ion Engine Large Storage Unit Visual Processing Unit Sensor Array Mining Laser [Rating: 13] Favorites ----------- Power Improved Ion Engine Engine Improved Ion Engine Propulsion Aluminum Leg Leg Aluminum Leg Utility Improved Terrain Scanner Device Improved Terrain Scanner Storage Small Storage Unit Processor Terrain Scan Processor Weapon Heavy Assault Rifle Energy Gun EM Pulse Gun Ballistic Gun Heavy Assault Rifle Launcher Rocket Launcher Special Weapon Mining Laser Build | -11 -10 -10 ------- Run | Scr Mat Min Slots Evolved . | . . . Power . | . . . Propulsion . | . . . Utility . | . . . Weapon . | . . . Parts Attached 38 | 8 20 10 Power 4 | 1 2 1 Engine 4 | 1 2 1 Core . | . . . Reactor . | . . . Propulsion 10 | 2 5 3 Treads . | . . . Leg 10 | 2 5 3 Wheel . | . . . Hover . | . . . Flight . | . . . Utility 7 | 3 2 2 Device 5 | 2 2 1 Storage 1 | 1 . . Processor 1 | . . 1 Hackware . | . . . Protection . | . . . Artifact . | . . . Weapon 17 | 2 11 4 Energy Gun 2 | . 2 . Energy Cannon . | . . . Ballistic Gun 11 | 2 9 . Ballistic Cannon . | . . . Launcher 2 | . . 2 Special Weapon 2 | . . 2 Impact Weapon . | . . . Slashing Weapon . | . . . Piercing Weapon . | . . . Special Melee Weapon . | . . . Unidentified Prototypes . | . . . Parts Lost 3 | . . 3 Power 1 | . . 1 Propulsion . | . . . Utility . | . . . Weapon 2 | . . 2 Highest Loss Streak 1 | . . 1 To Critical Strikes . | . . . Average Slot Usage (%) 98 | . 99 98 Engine 13 | . 13 13 Leg 27 | . 27 28 Device 24 | . 27 20 Processor 3 | . . 7 Energy Gun 5 | . 7 3 Ballistic Gun 17 | . 20 14 Launcher 3 | . . 8 Naked Turns . | . . . Heaviest Build 16 | 14 15 16 Greatest Support 20 | 20 20 20 Greatest Overweight (x) 2 | 2 1 . Average Overweight (x) . | . . . Largest Inventory Capacity 8 | 8 5 5 Average Capacity 5 | 7 5 5 Most Carried 5 | 3 5 5 Average Carried 4 | 2 4 4 Final Capacity 5 | 5 5 5 Final Carried 5 | 3 5 4 Class Distribution -------------------- 86% | Mutant 13% | Scavenger-Mutant Dominant Class ---------------- Mutant | -10/Materials Mutant | -10/Mines Resources | -11 -10 -10 ----------- Run | Scr Mat Min Matter Collected 930 | 196 425 309 Remotely . | . . . Salvage Created 898 | 43 617 238 Parts 62 | 8 44 10 Haulers Intercepted . | . . . Recyclers Shooed . | . . . Parts Field Recycled . | . . . Retrieved Matter . | . . . Parts Self-Destructed . | . . . Prevented . | . . . Kills | -11 -10 -10 ------- Run | Scr Mat Min Combat Hostiles Destroyed 22 | . 13 9 Guns 15 | . 11 4 AOE 7 | . 2 5 Classes Destroyed 9 | 1 5 3 Worker 3 | . 2 1 Tunneler 2 | 2 . . Recycler 2 | . 1 1 Watcher 3 | . 3 . Swarmer 3 | . 3 . Grunt 12 | . 10 2 Sentry 2 | . . 2 Demolisher 2 | . . 2 Assembled 3 | . . 3 Best Kill Streak 5 | 1 4 5 Combat Bots Only 3 | . 3 3 Max Kills in Single Turn 3 | 1 3 2 Gunslinging . | . . . Exploded 2 | . 2 1 Melee . | . . . Uniques/NPCs Destroyed . | . . . Combat | -11 -10 -10 -------- Run | Scr Mat Min Damage Taken 905 | . 391 514 Core 250 | . 125 125 Absorbed by Shields . | . . . Core Remaining (%) 100 | 100 . . Volleys Fired 68 | 2 44 22 Largest 2 | 2 2 2 Hottest 123 | 40 63 123 Shots Fired 131 | 4 88 39 Gun 114 | 4 88 22 Cannon . | . . . Launcher 15 | . . 15 Special 2 | . . 2 Kinetic 95 | 4 69 22 Thermal 2 | . . 2 Explosive 15 | . . 15 Electromagnetic 19 | . 19 . Robot Hit Streak 31 | 3 27 31 Robot Miss Streak 2 | . 1 2 Penetration Max . | . . . Secondary Targets 1 | . 1 . Max Gunslinging Chain 1 | . 1 . Shots Hit Robots 109 | 3 75 31 Core Hits 56 | 2 32 22 Critical Kills . | . . . Critical Parts Destroyed 2 | . 1 1 Critical Strikes 2 | . 1 1 Destroy 2 | . 1 1 Melee Attacks . | . . . Impact . | . . . Slashing . | . . . Piercing . | . . . Sneak Attacks . | . . . Combat Hostiles . | . . . Follow-up Attacks . | . . . Damage Inflicted 1796 | 35 992 769 Guns 1213 | 35 885 293 Cannons . | . . . Explosions 535 | . 107 428 Melee . | . . . Ramming . | . . . Kinetic 971 | 35 643 293 Thermal 155 | . 107 48 Explosive 428 | . . 428 Electromagnetic 242 | . 242 . Impact . | . . . Slashing . | . . . Piercing . | . . . Highest Corruption . | . . . Average Corruption . | . . . Corruption Purged . | . . . Corruption Blocked . | . . . Overload Shots . | . . . Overflow Damage 4 | . . 4 Projectiles 4 | . . 4 Explosions . | . . . Melee . | . . . Knockbacks . | . . . Impact . | . . . Kinetic . | . . . Secondary . | . . . Self-Inflicted Damage 46 | . 26 20 Shots 2 | . 1 1 Rammed . | . . . Targets Rammed . | . . . Kicked . | . . . Crushed . | . . . Highest Temperature 132 | . 132 53 Average Temperature 40 | . 44 28 Received Heat Transfer 273 | . 204 69 Siege Activations . | . . . Robots Corrupted . | . . . Combat Hostiles . | . . . Parts Fried . | . . . Impact Corruptions . | . . . Robots Melted . | . . . Combat Hostiles . | . . . Parts Melted . | . . . Heat Transferred 150 | . 50 100 Parts Sabotaged . | . . . Parts Stolen . | . . . Parts Stripped . | . . . Power Chain Reactions 1 | . 1 . Missiles Intercepted . | . . . Alert | -11 -10 -10 ------- Run | Scr Mat Min Peak Influence 213 | 5 200 213 Initial 19 | . 2 19 Average 59 | 1 70 90 Maximum Alert Level 1 | . 1 1 Low Security (%) 91 | 100 99 73 Level 1 8 | . . 26 Level 2 . | . . . Level 3 . | . . . Level 4 . | . . . Level 5 . | . . . High Security . | . . . Max Security . | . . . Squads Dispatched 3 | . 3 . Investigation 3 | . 3 . Extermination . | . . . Reinforcement . | . . . Assault . | . . . Garrison . | . . . Intercept . | . . . Searches Triggered . | . . . Construction Impeded . | . . . Haulers Reinforced . | . . . Active Scanning Responses . | . . . Cargo Convoy Interrupts . | . . . Stealth | -11 -10 -10 --------- Run | Scr Mat Min Distress Signals 2 | . 1 1 Communications Jammed . | . . . Distress Signals . | . . . Times Spotted 27 | . 17 10 Peak Tracking Total 3 | . 3 2 Tactical Retreats 1 | . 1 . Traps | -11 -10 -10 ------- Run | Scr Mat Min Traps Triggered 6 | . 6 . Indirectly . | . . . Trap Hack Attempts . | . . . Triggered . | . . . Disarmed 1 | . 1 . Reprogrammed . | . . . Reused . | . . . Traps Extracted . | . . . Installed . | . . . Triggered . | . . . Machines | -11 -10 -10 ---------- Run | Scr Mat Min Machines Disabled 2 | . . 2 Max in Single Turn 2 | . . 2 Machines Sabotaged . | . . . Garrisons Compromised . | . . . Overloaded Fab Kills . | . . . Hacking | -11 -10 -10 --------- Run | Scr Mat Min Machines Accessed 8 | . 8 . Terminals 7 | . 7 . Fabricators . | . . . Repair Stations . | . . . Recycling Units 1 | . 1 . Scanalyzers . | . . . Garrison Access . | . . . Total Hacks 32 | . 32 . Successful 22 | . 22 . Failed 8 | . 8 . Catastrophic 1 | . 1 . Database Lockouts 2 | . 2 . Manual . | . . . Terminals 31 | . 31 . Fabricators . | . . . Repair Stations . | . . . Recycling Units 1 | . 1 . Scanalyzers . | . . . Garrison Access . | . . . Terminal Hacks 21 | . 21 . Record 10 | . 10 . Prototype ID Bank 1 | . 1 . Emergency Access Points 2 | . 2 . Alert Level 1 | . 1 . Locate Traps 1 | . 1 . Disarm Traps 1 | . 1 . Maintenance Status 1 | . 1 . Security Status 1 | . 1 . Hauler Manifests 1 | . 1 . Registered Components 1 | . 1 . Zone Layout 1 | . 1 . Fabricator Hacks . | . . . Repair Station Hacks . | . . . Recycling Unit Hacks 1 | . 1 . Report Inventory 1 | . 1 . Scanalyzer . | . . . Garrison Access Hacks . | . . . Unauthorized Hacks . | . . . Terminals . | . . . Fabricators . | . . . Repair Stations . | . . . Recycling Units . | . . . Scanalyzers . | . . . Garrison Access . | . . . Data Cores Recovered . | . . . Used . | . . . Hacking Detections 5 | . 5 . Full Trace Events 1 | . 1 . Feedback Events . | . . . Feedback Blocked . | . . . Robot Schematics Acquired . | . . . Robots Built . | . . . Authchips . | . . . Time . | . . . Total Robot Build Rating . | . . . Part Schematics Acquired . | . . . Parts Built . | . . . Authchips . | . . . Time . | . . . Total Part Build Rating . | . . . Parts Repaired . | . . . Time . | . . . Parts Recycled . | . . . Recycled Matter . | . . . Retrieved Matter . | . . . Retrieved Components . | . . . Parts Scanalyzed . | . . . Part Schematics Acquired . | . . . Parts Damaged . | . . . Bothacking | -11 -10 -10 ------------ Run | Scr Mat Min Used RIF Installer . | . . . Robots Hacked . | . . . Non-combat . | . . . Combat . | . . . Robot Hacks Applied . | . . . Relay Couplers Released . | . . . Fabnet Peak Effective % . | . . . Robots Rewired . | . . . Allies Hacked . | . . . Hacks Repelled . | . . . Allies | -11 -10 -10 -------- Run | Scr Mat Min Total Allies . | . . . Largest Group . | . . . Highest-Rated Group . | . . . Highest-Rated Ally . | . . . Total Orders . | . . . Ally Attacks . | . . . Total Damage . | . . . Kills . | . . . Allies Corrupted . | . . . Allies Melted . | . . . Intel | -11 -10 -10 ------- Run | Scr Mat Min Robot Analysis Total . | . . . Derelict Logs Recovered 1 | . . 1 Drone Launches . | . . . Drone Recoveries . | . . . Exploration | -11 -10 -10 ------------- Run | Scr Mat Min Turns Passed 3210 | 798 1415 997 Spaces Moved 1791 | 229 848 714 Core 10 | 10 . . Treads . | . . . Legs 1781 | 219 848 714 Wheels . | . . . Hover . | . . . Flight . | . . . Fastest Speed 50 | 50 120 120 Average Speed 119 | 117 120 120 Slowest Speed 190 | 150 190 120 Overloaded Moves . | . . . Propulsion Burnouts . | . . . Robots Hopped . | . . . Cave-ins Triggered . | . . . Exploration Rate (%) 71 | 20 98 96 Regions Visited 2 Branch Regions 1 Pre-discovered Areas . | . . . Known Exits Taken . | . . . Unknown Exits Taken 2 | 1 1 . Scrap Searched . | . . . Spaces Dug . | . . . Terrain Destroyed 136 | . 2 134 Melee . | . . . Projectile . | . . . AOE 136 | . 2 134 Terrain Rammed . | . . . Walls Destroyed . | . . . Machines Disabled . | . . . Actions | -11 -10 -10 --------- Run | Scr Mat Min Total 2723 | 750 1161 812 Wait 791 | 508 228 55 Move 1789 | 228 847 714 Hop . | . . . Pick Up 15 | 3 8 4 Fast Attach 21 | 7 13 1 Attach 5 | 1 1 3 Detach 2 | 1 . 1 Swap 12 | . 6 6 Drop 20 | . 14 6 Fire 68 | 2 44 22 Melee . | . . . Ram . | . . . Kick . | . . . Crush . | . . . Escape Stasis . | . . . Rewire . | . . . Trap . | . . . Miscellaneous . | . . . Route ------- -11/Scrapyard -10/Materials (discovered 4 exits: [*Mat x3] / [*Min]) -10/Mines (discovered 3 exits: [*Mat x2] / [*Exi]) History --------- Turn | Location | Event 4 | -11/Scrapyard | Discovered new exit (range 16) 799 | -11/Scrapyard | Entered Materials 800 | -10/Materials | Build established: Mutant 1163 | -10/Materials | Discovered new exit (range 7) 1426 | -10/Materials | Discovered new exit (range 7) 1768 | -10/Materials | Discovered new exit (range 12) 2002 | -10/Materials | Discovered new exit (range 17) 2019 | -10/Materials | Central database locked down 2019 | -10/Materials | Central database locked down 2214 | -10/Materials | Entered Mines 2292 | -10/Mines | Learned Materials terminal intel 2300 | -10/Mines | Assembled infested the area 2467 | -10/Mines | Core integrity fell below 50% 3051 | -10/Mines | Build established: Scavenger-Mutant 3076 | -10/Mines | Discovered new exit (range 12) 3096 | -10/Mines | Core integrity fell below 20% 3167 | -10/Mines | Deemed a non-threat by the Exiles lab entrance 3167 | -10/Mines | Discovered new exit (range 5) 3176 | -10/Mines | Discovered new exit (range 8) 3211 | -10/Mines | Destroyed by S-10 Pest with Light Assault Rifle Last Messages --------------- 02965_ K-01 Serf collects debris. 02969_ U-05 Engineer builds a Wall. 02976_ K-01 Serf collects debris. 02977_ U-05 Engineer builds a Wall. 02977_ K-01 Serf collects debris. 02982_ U-05 Engineer lays Concrete. 03055_ Acquired 8 matter. 03076_ EXIT=FOUND 03094_ Machine disabled. 03096_ Critical hit (Burn: +37). 03100_ Y-45 Defender destroyed. 03104_ Rocket Launcher destroyed. 03106_ Y-45 Defender destroyed. 03109_ The unstable cave ceiling collapses. 03152_ Acquired 28 matter. 03161_ The unstable cave ceiling collapses. 03167_ "No threat detected, you may enter." 03167_ EXIT=FOUND 03183_ Acquired 26 matter. 03206_ Destroyed Flight Unit. Map ----- +----------------------------------------------------+ | ?#??#???###??#?#### =## | | ???#???#?### ?##?##%!## ### | | ?????###?## ## #### | | ?#?????#?## ?? ## %##### # | | ???????### ?########## #?####### | | #?????#### ###?##?#### ######### | | ??#?????# ???##??# ## | | ????????# ##???#?# % ###### ## | | #???#???## ####?## ####?#### ## | | ??????????# ##?### ####??### ## | | #?#?#????### ##### ###### ## | | ???#???###?# #### ###?# #? | | ?#??##?##### ## ##### ## | | ????#<#### ##??## ## | | ???## ## # ## #####?# ## | | ??#?### # ######?##### ## | | ??????### ### ####?#####?# #? | | ?#?#????###?### ##?####?#### ## | | ????#??##?#???##* ########?## ## | | ?#?##?######??##%% # ##### ## | | ??? ? ?####% = | | #??? ??< ??# %!% # ] | | ???? ??? ## #### # % | | #??###??#s#?## #?# # ! < | | ????#?#?#s#### ## # ] | | ??##????#@ ## # # | | ?????############# ## ### | | ????#??##??#???####### ###?####### | | ???????#?##???#???#?####?###?####? | | ??##??#??##??#??####?????#?#??##?? | | ????????#???##????##??#?###????#?? | | | | | | | | | | | | | | | | | | | | | | | | | | | | | | | | | | | | | | | +----------------------------------------------------+ Best States ------------- Heat Dissipation 25 Energy Generation 12 Energy Capacity 265 Matter Stores 300 Matter Capacity 300 Sight Range 16 Robot Scan Range 14 Terrain Scan Range 16 Terrain Scan Density 85 Resistance: KI 20 Resistance: TH 20 Resistance: EX 20 Resistance: EM 20 Resistance: I 20 Resistance: S 20 Resistance: P 20 Evasion (%) 55 Offensive Hacking 10 Item Schematics ----------------- None Robot Schematics ------------------ None Fabricated ------------ Nothing Alien Tech Used ----------------- None Achievements -------------- None Challenges ------------ None Game ------ Seed ShadingTransmissionUnit Manual? 0 Play Time 00:48:03 Cumulative 25.6 hours Start 2022.05.17 @ 23:25:11 End 2022.05.18 @ 00:19:51 Sessions 1 Manual Loads 0 Difficulty Adventurer Special Mode None Game No. 12 Rogue 0 Adventurer 12 Explorer 0 Win Type - Total 0 Types 0/0/0/0/0/0/0/0/0 Lore% 8 Gallery% 21 Achievement% 19 Wizard Run 0 Options --------- ASCII 0 Keyboard 0 Movement Numpad Keybinds 0 Fullscreen 1 Font 18/SmallcapsGlow Map View 76x50 Tactical HUD 1 Map Filters NONE Filters NONE Steam 1 RUN: a8d729ed-3f09-4c31-b61a-d1b847903169